[Event "Chessable Masters - Torneo preliminare"]
[White "Sharapov, Evgeny"]
[Black "Nigmatov, Ortik"]
[WhiteFideId "14103133"]
[BlackFideId "14202131"]
[WhiteElo "2337"]
[BlackElo "2344"]
[Result "1-0"]
[Round "3"]
[TimeControl "600+2"]
[Date "2023.03.13"]
[WhiteClock "0:00:24"]
[BlackClock "0:00:04"]

1. e4 {[%clk 0:10:00]}  c5 {[%clk 0:09:58]} 2. Nf3 {[%clk 0:10:01]}  e6 {[%clk 0:09:58]} 3. d4 {[%clk 0:10:02]}  cxd4 {[%clk 0:10:00]} 4. Nxd4 {[%clk 0:10:03]}  Nf6 {[%clk 0:10:01]} 5. Nc3 {[%clk 0:10:04]}  d6 {[%clk 0:10:02]} 6. g3 {[%clk 0:10:03]}  a6 {[%clk 0:09:59]} 7. Bg2 {[%clk 0:10:03]}  Be7 {[%clk 0:10:01]} 8. O-O {[%clk 0:10:04]}  O-O {[%clk 0:10:02]} 9. a4 {[%clk 0:10:05]}  Qc7 {[%clk 0:10:01]} 10. a5 {[%clk 0:10:05]}  Nc6 {[%clk 0:10:01]} 11. Nb3 {[%clk 0:10:06]}  Ne5 {[%clk 0:09:47]} 12. f4 {[%clk 0:10:04]}  Nc4 {[%clk 0:09:48]} 13. Qe2 {[%clk 0:10:00]}  Bd7 {[%clk 0:09:42]} 14. Kh1 {[%clk 0:10:00]}  Rfc8 {[%clk 0:09:32]} 15. g4 {[%clk 0:09:59]}  b5 {[%clk 0:09:06]} 16. axb6 {[%clk 0:09:57]}  Qxb6 {[%clk 0:09:06]} 17. g5 {[%clk 0:09:54]}  Ne8 {[%clk 0:09:06]} 18. f5 {[%clk 0:09:42]}  Ne5 {[%clk 0:08:22]} 19. Be3 {[%clk 0:09:19]}  Qb7 {[%clk 0:08:20]} 20. Bf4 {[%clk 0:09:12]}  a5 {[%clk 0:07:50]} 21. fxe6 {[%clk 0:08:15]}  Bxe6 {[%clk 0:07:29]} 22. Nd5 {[%clk 0:08:03]}  Bd8 {[%clk 0:06:41]} 23. Nd4 {[%clk 0:07:36]}  Nc7 {[%clk 0:04:38]} 24. Nxc7 {[%clk 0:05:52]}  Bc4 {[%clk 0:04:34]} 25. Qh5 {[%clk 0:05:32]}  Rxc7 {[%clk 0:04:22]} 26. Rfb1 {[%clk 0:05:17]}  g6 {[%clk 0:04:11]} 27. Qd1 {[%clk 0:05:13]}  Be7 {[%clk 0:04:10]} 28. b3 {[%clk 0:05:11]}  Ba6 {[%clk 0:04:06]} 29. c4 {[%clk 0:05:11]}  Rc5 {[%clk 0:03:48]} 30. Be3 {[%clk 0:05:02]}  Qd7 {[%clk 0:03:24]} 31. Nf3 {[%clk 0:04:44]}  Nxf3 {[%clk 0:03:07]} 32. Bxc5 {[%clk 0:04:37]}  Nh4 {[%clk 0:03:05]} 33. Be3 {[%clk 0:04:19]}  Nxg2 {[%clk 0:03:04]} 34. Kxg2 {[%clk 0:04:20]}  Bb7 {[%clk 0:03:06]} 35. Qf3 {[%clk 0:04:02]}  Qe6 {[%clk 0:03:07]} 36. Qf4 {[%clk 0:03:50]}  Bxe4+ {[%clk 0:03:06]} 37. Kg1 {[%clk 0:03:51]}  Bxb1 {[%clk 0:02:57]} 38. Rxb1 {[%clk 0:03:51]}  Re8 {[%clk 0:02:48]} 39. Bd2 {[%clk 0:03:45]}  Bd8 {[%clk 0:02:47]} 40. Re1 {[%clk 0:03:42]}  Bb6+ {[%clk 0:02:32]} 41. Kg2 {[%clk 0:03:42]}  Qd7 {[%clk 0:02:31]} 42. Rxe8+ {[%clk 0:03:37]}  Qxe8 {[%clk 0:02:33]} 43. Qf3 {[%clk 0:03:32]}  Bd4 {[%clk 0:02:17]} 44. Bxa5 {[%clk 0:03:24]}  Be3 {[%clk 0:01:49]} 45. h4 {[%clk 0:03:18]}  Qe5 {[%clk 0:01:46]} 46. Kh3 {[%clk 0:02:37]}  h5 {[%clk 0:00:23]} 47. gxh6 {[%clk 0:02:28]}  Bf4 {[%clk 0:00:21]} 48. Bc3 {[%clk 0:02:03]}  Qf5+ {[%clk 0:00:22]} 49. Kg2 {[%clk 0:01:59]}  Kh7 {[%clk 0:00:23]} 50. Be1 {[%clk 0:01:24]}  Kxh6 {[%clk 0:00:20]} 51. Bf2 {[%clk 0:01:23]}  Kh7 {[%clk 0:00:12]} 52. b4 {[%clk 0:01:23]}  Qe5 {[%clk 0:00:06]} 53. b5 {[%clk 0:01:20]}  Bd2 {[%clk 0:00:04]} 54. Qxf7+ {[%clk 0:01:17]}  Kh6 {[%clk 0:00:05]} 55. b6 {[%clk 0:00:58]}  Qe4+ {[%clk 0:00:03]} 56. Qf3 {[%clk 0:00:58]}  Qxc4 {[%clk 0:00:04]} 57. b7 {[%clk 0:00:48]}  Qb4 {[%clk 0:00:06]} 58. Qf8+ {[%clk 0:00:43]}  Kh5 {[%clk 0:00:06]} 59. b8=Q {[%clk 0:00:42]}  Qg4+ {[%clk 0:00:06]} 60. Kf1 {[%clk 0:00:25]}  Qd1+ {[%clk 0:00:06]} 61. Kg2 {[%clk 0:00:26]}  Qg4+ {[%clk 0:00:08]} 62. Bg3 {[%clk 0:00:24]}  Qe2+ {[%clk 0:00:04]} 63. Qf2 {[%clk 0:00:24]} 1-0


[Site "Internet"]

[Event "Chessable Masters - Torneo preliminare"]
[White "Kaufman, Lawrence"]
[Black "Henriquez Villagra, Cristobal"]
[WhiteFideId "2000555"]
[BlackFideId "3409350"]
[WhiteElo "2233"]
[BlackElo "2574"]
[Result "0-1"]
[Round "3"]
[TimeControl "600+2"]
[Date "2023.03.13"]
[WhiteClock "0:00:02"]
[BlackClock "0:03:48"]

1. e4 {[%clk 0:09:58]}  c6 {[%clk 0:10:00]} 2. Nf3 {[%clk 0:09:56]}  d5 {[%clk 0:10:02]} 3. Nc3 {[%clk 0:09:55]}  Bg4 {[%clk 0:10:01]} 4. h3 {[%clk 0:09:54]}  Bxf3 {[%clk 0:10:02]} 5. Qxf3 {[%clk 0:09:55]}  Nf6 {[%clk 0:10:03]} 6. Be2 {[%clk 0:09:52]}  e6 {[%clk 0:09:55]} 7. O-O {[%clk 0:09:51]}  Bc5 {[%clk 0:09:50]} 8. Rd1 {[%clk 0:09:18]}  Bd4 {[%clk 0:09:26]} 9. d3 {[%clk 0:09:02]}  O-O {[%clk 0:09:22]} 10. Qg3 {[%clk 0:08:38]}  Kh8 {[%clk 0:09:07]} 11. Bf4 {[%clk 0:07:20]}  Nbd7 {[%clk 0:08:58]} 12. Bd6 {[%clk 0:07:04]}  Rg8 {[%clk 0:08:23]} 13. Kh1 {[%clk 0:05:58]}  Qb6 {[%clk 0:07:40]} 14. f4 {[%clk 0:04:20]}  Qxb2 {[%clk 0:07:31]} 15. e5 {[%clk 0:02:30]}  Ne8 {[%clk 0:06:59]} 16. Bh5 {[%clk 0:01:54]}  Nxd6 {[%clk 0:06:19]} 17. exd6 {[%clk 0:01:51]}  Qxc3 {[%clk 0:05:41]} 18. Bxf7 {[%clk 0:01:47]}  Rgf8 {[%clk 0:05:42]} 19. Bxe6 {[%clk 0:01:43]}  Nc5 {[%clk 0:05:43]} 20. Qg4 {[%clk 0:01:27]}  Rad8 {[%clk 0:04:32]} 21. d7 {[%clk 0:01:22]}  Qxc2 {[%clk 0:04:19]} 22. f5 {[%clk 0:01:01]}  Bxa1 {[%clk 0:04:13]} 23. Rxa1 {[%clk 0:01:01]}  Nxd3 {[%clk 0:04:12]} 24. Qh4 {[%clk 0:00:24]}  Nf2+ {[%clk 0:03:59]} 25. Kh2 {[%clk 0:00:17]}  Ne4 {[%clk 0:04:01]} 26. Rf1 {[%clk 0:00:11]}  Qc3 {[%clk 0:03:57]} 27. Kg1 {[%clk 0:00:03]}  Qd4+ {[%clk 0:03:58]} 28. Kh2 {[%clk 0:00:02]}  Qe5+ {[%clk 0:03:59]} 29. Kg1 {[%clk 0:00:03]}  Nf6 {[%clk 0:03:49]} 30. g4 {[%clk 0:00:02]}  Nxd7 {[%clk 0:03:48]} 0-1


[Site "Internet"]

[Event "Chessable Masters - Torneo preliminare"]
[White "Iskusnyh, Sergei"]
[Black "Christiansen, Johan-Sebastian"]
[WhiteFideId "4120027"]
[BlackFideId "1512668"]
[WhiteElo "2345"]
[BlackElo "2481"]
[Result "0-1"]
[Round "3"]
[TimeControl "600+2"]
[Date "2023.03.13"]
[WhiteClock "0:01:17"]
[BlackClock "0:05:38"]

1. d4 {[%clk 0:10:01]}  Nf6 {[%clk 0:09:58]} 2. c4 {[%clk 0:09:56]}  c5 {[%clk 0:09:54]} 3. d5 {[%clk 0:09:42]}  b5 {[%clk 0:09:55]} 4. Qc2 {[%clk 0:09:22]}  bxc4 {[%clk 0:09:50]} 5. e4 {[%clk 0:09:22]}  e6 {[%clk 0:09:51]} 6. Nc3 {[%clk 0:09:19]}  exd5 {[%clk 0:09:31]} 7. exd5 {[%clk 0:08:57]}  d6 {[%clk 0:09:32]} 8. Bxc4 {[%clk 0:08:47]}  Be7 {[%clk 0:09:33]} 9. Nge2 {[%clk 0:08:36]}  O-O {[%clk 0:09:34]} 10. O-O {[%clk 0:08:35]}  Nbd7 {[%clk 0:09:36]} 11. Nf4 {[%clk 0:08:12]}  Nb6 {[%clk 0:09:38]} 12. Be2 {[%clk 0:08:13]}  Nfd7 {[%clk 0:09:13]} 13. b3 {[%clk 0:07:59]}  Bb7 {[%clk 0:09:05]} 14. Bb2 {[%clk 0:07:57]}  Re8 {[%clk 0:09:06]} 15. Rad1 {[%clk 0:07:51]}  Bg5 {[%clk 0:09:07]} 16. Nh5 {[%clk 0:07:41]}  Bh6 {[%clk 0:09:04]} 17. Bb5 {[%clk 0:07:25]}  Rc8 {[%clk 0:08:48]} 18. Ne4 {[%clk 0:07:13]}  Qh4 {[%clk 0:08:24]} 19. Nxd6 {[%clk 0:06:35]}  Qxh5 {[%clk 0:08:15]} 20. Nxb7 {[%clk 0:06:31]}  Rc7 {[%clk 0:07:54]} 21. Nd6 {[%clk 0:05:33]}  Bf4 {[%clk 0:07:54]} 22. g3 {[%clk 0:05:05]}  Bxd6 {[%clk 0:07:54]} 23. Rfe1 {[%clk 0:05:05]}  Rf8 {[%clk 0:07:40]} 24. f4 {[%clk 0:04:55]}  Nf6 {[%clk 0:07:32]} 25. Be2 {[%clk 0:04:24]}  Qh6 {[%clk 0:07:25]} 26. Qf5 {[%clk 0:04:16]}  c4 {[%clk 0:07:22]} 27. Kg2 {[%clk 0:03:36]}  c3 {[%clk 0:07:11]} 28. Bc1 {[%clk 0:03:36]}  Qg6 {[%clk 0:07:07]} 29. Qxg6 {[%clk 0:03:20]}  hxg6 {[%clk 0:07:06]} 30. Bf3 {[%clk 0:03:11]}  Re8 {[%clk 0:06:54]} 31. Rxe8+ {[%clk 0:02:59]}  Nxe8 {[%clk 0:06:56]} 32. Rd3 {[%clk 0:02:55]}  Nf6 {[%clk 0:06:54]} 33. g4 {[%clk 0:02:54]}  c2 {[%clk 0:06:54]} 34. Kf2 {[%clk 0:01:54]}  Rc5 {[%clk 0:06:43]} 35. a3 {[%clk 0:01:49]}  Rc8 {[%clk 0:06:24]} 36. Ke2 {[%clk 0:01:38]}  Re8+ {[%clk 0:06:15]} 37. Kf2 {[%clk 0:01:37]}  Bc5+ {[%clk 0:06:13]} 38. Kf1 {[%clk 0:01:35]}  Bd6 {[%clk 0:05:42]} 39. a4 {[%clk 0:01:17]}  Bb4 {[%clk 0:05:38]} 0-1


[Site "Internet"]

[Event "Chessable Masters - Torneo preliminare"]
[White "Volkov, Sergey"]
[Black "Huschenbeth, Niclas"]
[WhiteFideId "4122763"]
[BlackFideId "24604747"]
[WhiteElo "2496"]
[BlackElo "2566"]
[Result "0-1"]
[Round "3"]
[TimeControl "600+2"]
[Date "2023.03.13"]
[WhiteClock "0:06:11"]
[BlackClock "0:01:44"]

1. d4 {[%clk 0:10:01]}  Nf6 {[%clk 0:10:00]} 2. c4 {[%clk 0:10:02]}  e6 {[%clk 0:10:01]} 3. Nc3 {[%clk 0:10:04]}  Bb4 {[%clk 0:10:00]} 4. f3 {[%clk 0:10:05]}  Nc6 {[%clk 0:09:44]} 5. e4 {[%clk 0:10:00]}  e5 {[%clk 0:09:44]} 6. a3 {[%clk 0:09:59]}  Bxc3+ {[%clk 0:09:43]} 7. bxc3 {[%clk 0:09:59]}  d6 {[%clk 0:09:42]} 8. a4 {[%clk 0:09:40]}  b6 {[%clk 0:09:30]} 9. Bd3 {[%clk 0:09:17]}  exd4 {[%clk 0:09:23]} 10. Bb2 {[%clk 0:09:16]}  dxc3 {[%clk 0:09:15]} 11. Bxc3 {[%clk 0:09:17]}  Ne5 {[%clk 0:09:01]} 12. Ne2 {[%clk 0:09:08]}  O-O {[%clk 0:07:22]} 13. O-O {[%clk 0:09:05]}  Be6 {[%clk 0:06:47]} 14. f4 {[%clk 0:08:46]}  Nxc4 {[%clk 0:05:31]} 15. f5 {[%clk 0:08:45]}  Ne3 {[%clk 0:05:32]} 16. Qc1 {[%clk 0:08:45]}  Nxf1 {[%clk 0:05:30]} 17. fxe6 {[%clk 0:08:44]}  fxe6 {[%clk 0:05:27]} 18. Qg5 {[%clk 0:08:42]}  Nxh2 {[%clk 0:04:45]} 19. Kxh2 {[%clk 0:08:31]}  h6 {[%clk 0:04:07]} 20. Qg3 {[%clk 0:07:52]}  e5 {[%clk 0:03:34]} 21. Qh3 {[%clk 0:07:31]}  Qd7 {[%clk 0:03:14]} 22. Bc4+ {[%clk 0:07:21]}  Kh8 {[%clk 0:03:13]} 23. Be6 {[%clk 0:07:20]}  Qc6 {[%clk 0:02:58]} 24. Ng3 {[%clk 0:07:02]}  Qxc3 {[%clk 0:02:54]} 25. Rf1 {[%clk 0:06:59]}  Qe3 {[%clk 0:02:29]} 26. Rf3 {[%clk 0:06:56]}  Qg5 {[%clk 0:02:30]} 27. Bf5 {[%clk 0:06:47]}  c6 {[%clk 0:02:03]} 28. Ne2 {[%clk 0:06:36]}  Qh5 {[%clk 0:02:03]} 29. Rc3 {[%clk 0:06:32]}  Qxe2 {[%clk 0:02:02]} 30. Rxc6 {[%clk 0:06:33]}  Nxe4 {[%clk 0:01:54]} 31. Rc7 {[%clk 0:06:23]}  Ng5 {[%clk 0:01:51]} 32. Qc3 {[%clk 0:06:13]}  Rxf5 {[%clk 0:01:49]} 33. Rc8+ {[%clk 0:06:13]}  Rf8 {[%clk 0:01:46]} 34. Qf3 {[%clk 0:06:11]}  Nxf3+ {[%clk 0:01:44]} 0-1


[Site "Internet"]

[Event "Chessable Masters - Torneo preliminare"]
[White "Fedoseev, Vladimir"]
[Black "Artemiev, Vladislav"]
[WhiteFideId "24130737"]
[BlackFideId "24101605"]
[WhiteElo "2752"]
[BlackElo "2735"]
[Result "1/2-1/2"]
[Round "4"]
[TimeControl "600+2"]
[Date "2023.03.13"]
[WhiteClock "0:00:50"]
[BlackClock "0:00:12"]

1. e4 {[%clk 0:09:56]}  e5 {[%clk 0:09:58]} 2. Nf3 {[%clk 0:09:56]}  Nc6 {[%clk 0:09:58]} 3. Bb5 {[%clk 0:09:57]}  Nf6 {[%clk 0:09:56]} 4. O-O {[%clk 0:09:55]}  Nxe4 {[%clk 0:09:57]} 5. Re1 {[%clk 0:09:56]}  Nd6 {[%clk 0:09:57]} 6. Nxe5 {[%clk 0:09:56]}  Be7 {[%clk 0:09:58]} 7. Bf1 {[%clk 0:09:57]}  Nxe5 {[%clk 0:09:55]} 8. Rxe5 {[%clk 0:09:58]}  O-O {[%clk 0:09:56]} 9. d4 {[%clk 0:09:59]}  Ne8 {[%clk 0:09:55]} 10. c4 {[%clk 0:09:52]}  Bf6 {[%clk 0:09:53]} 11. Re1 {[%clk 0:09:49]}  d5 {[%clk 0:09:53]} 12. cxd5 {[%clk 0:09:28]}  Qxd5 {[%clk 0:09:54]} 13. Be3 {[%clk 0:09:30]}  Be6 {[%clk 0:09:35]} 14. Nc3 {[%clk 0:09:28]}  Qa5 {[%clk 0:09:09]} 15. Rb1 {[%clk 0:07:37]}  c6 {[%clk 0:08:30]} 16. b4 {[%clk 0:06:28]}  Qd8 {[%clk 0:08:30]} 17. b5 {[%clk 0:06:26]}  Nc7 {[%clk 0:06:21]} 18. bxc6 {[%clk 0:06:23]}  bxc6 {[%clk 0:06:21]} 19. Qa4 {[%clk 0:06:22]}  Nd5 {[%clk 0:06:16]} 20. Nxd5 {[%clk 0:06:02]}  Bxd5 {[%clk 0:04:44]} 21. Rb7 {[%clk 0:05:41]}  h6 {[%clk 0:02:37]} 22. Bc4 {[%clk 0:05:09]}  Re8 {[%clk 0:02:24]} 23. Rc1 {[%clk 0:04:52]}  Bg5 {[%clk 0:00:43]} 24. Bxd5 {[%clk 0:04:12]}  Qxd5 {[%clk 0:00:42]} 25. Bxg5 {[%clk 0:03:53]}  Qxg5 {[%clk 0:00:36]} 26. Qc4 {[%clk 0:03:07]}  Re6 {[%clk 0:00:25]} 27. g3 {[%clk 0:02:54]}  Qd2 {[%clk 0:00:19]} 28. Kg2 {[%clk 0:02:17]}  Rf6 {[%clk 0:00:18]} 29. Rf1 {[%clk 0:02:11]}  Re8 {[%clk 0:00:12]} 30. Qc5 {[%clk 0:01:01]}  Re2 {[%clk 0:00:07]} 31. d5 {[%clk 0:01:02]}  cxd5 {[%clk 0:00:06]} 32. Rd7 {[%clk 0:00:56]}  Qxa2 {[%clk 0:00:05]} 33. Rxa7 {[%clk 0:00:46]}  Qd2 {[%clk 0:00:05]} 34. Rd7 {[%clk 0:00:45]}  d4 {[%clk 0:00:06]} 35. Rd8+ {[%clk 0:00:39]}  Kh7 {[%clk 0:00:07]} 36. Qxd4 {[%clk 0:00:41]}  Rexf2+ {[%clk 0:00:04]} 37. Rxf2 {[%clk 0:00:42]}  Rxf2+ {[%clk 0:00:06]} 38. Qxf2 {[%clk 0:00:44]}  Qxd8 {[%clk 0:00:07]} 39. Qxf7 {[%clk 0:00:45]}  Qd2+ {[%clk 0:00:08]} 40. Kh3 {[%clk 0:00:45]}  Qd3 {[%clk 0:00:08]} 41. Kg2 {[%clk 0:00:44]}  Qe4+ {[%clk 0:00:08]} 42. Qf3 {[%clk 0:00:44]}  Qc2+ {[%clk 0:00:09]} 43. Qf2 {[%clk 0:00:45]}  Qe4+ {[%clk 0:00:10]} 44. Qf3 {[%clk 0:00:46]}  Qc2+ {[%clk 0:00:11]} 45. Qf2 {[%clk 0:00:48]}  Qe4+ {[%clk 0:00:12]} 46. Qf3 {[%clk 0:00:50]} 1/2-1/2


[Site "Internet"]

[Event "Chessable Masters - Torneo preliminare"]
[White "Le, Quang Liem"]
[Black "Firouzja, Alireza"]
[WhiteFideId "12401137"]
[BlackFideId "12573981"]
[WhiteElo "2661"]
[BlackElo "2745"]
[Result "1-0"]
[Round "4"]
[TimeControl "600+2"]
[Date "2023.03.13"]
[WhiteClock "0:01:55"]
[BlackClock "0:00:02"]

1. d4 {[%clk 0:10:01]}  Nf6 {[%clk 0:09:46]} 2. Nf3 {[%clk 0:10:02]}  d5 {[%clk 0:09:46]} 3. c4 {[%clk 0:10:03]}  e6 {[%clk 0:09:46]} 4. g3 {[%clk 0:10:03]}  dxc4 {[%clk 0:09:37]} 5. Bg2 {[%clk 0:10:04]}  c5 {[%clk 0:09:38]} 6. O-O {[%clk 0:10:01]}  Nc6 {[%clk 0:09:38]} 7. Qa4 {[%clk 0:10:02]}  Bd7 {[%clk 0:09:37]} 8. dxc5 {[%clk 0:10:03]}  Na5 {[%clk 0:09:32]} 9. Qc2 {[%clk 0:09:47]}  Bxc5 {[%clk 0:09:21]} 10. Ne5 {[%clk 0:09:36]}  Qc7 {[%clk 0:09:09]} 11. Bf4 {[%clk 0:09:06]}  Bd6 {[%clk 0:08:09]} 12. Nxd7 {[%clk 0:08:29]}  Nxd7 {[%clk 0:08:08]} 13. Bxd6 {[%clk 0:08:28]}  Qxd6 {[%clk 0:08:09]} 14. Rd1 {[%clk 0:08:29]}  Qc7 {[%clk 0:08:03]} 15. Na3 {[%clk 0:08:12]}  O-O {[%clk 0:07:24]} 16. b4 {[%clk 0:07:56]}  Nc6 {[%clk 0:07:21]} 17. Qxc4 {[%clk 0:07:53]}  Nde5 {[%clk 0:07:12]} 18. Qc3 {[%clk 0:07:27]}  Rac8 {[%clk 0:06:20]} 19. Nb5 {[%clk 0:06:44]}  Qb6 {[%clk 0:03:02]} 20. Nd6 {[%clk 0:06:40]}  Rcd8 {[%clk 0:01:45]} 21. b5 {[%clk 0:06:26]}  Ng4 {[%clk 0:01:46]} 22. e3 {[%clk 0:06:09]}  Ne7 {[%clk 0:01:03]} 23. Qd4 {[%clk 0:05:29]}  Qxd4 {[%clk 0:00:58]} 24. Rxd4 {[%clk 0:05:31]}  b6 {[%clk 0:00:57]} 25. Rad1 {[%clk 0:04:54]}  Nf6 {[%clk 0:00:34]} 26. e4 {[%clk 0:04:47]}  Ng6 {[%clk 0:00:20]} 27. Kf1 {[%clk 0:04:20]}  Rd7 {[%clk 0:00:20]} 28. Ke2 {[%clk 0:04:10]}  Rc7 {[%clk 0:00:20]} 29. R1d2 {[%clk 0:03:45]}  Rd8 {[%clk 0:00:19]} 30. Nf5 {[%clk 0:03:30]}  Rxd4 {[%clk 0:00:18]} 31. Nxd4 {[%clk 0:03:32]}  Rc4 {[%clk 0:00:09]} 32. Nc6 {[%clk 0:03:26]}  h5 {[%clk 0:00:09]} 33. h3 {[%clk 0:02:36]}  Ra4 {[%clk 0:00:05]} 34. e5 {[%clk 0:02:30]}  Ne4 {[%clk 0:00:06]} 35. Bxe4 {[%clk 0:02:00]}  Rxe4+ {[%clk 0:00:08]} 36. Kd3 {[%clk 0:02:01]}  Ra4 {[%clk 0:00:10]} 37. Kc3 {[%clk 0:02:02]}  a6 {[%clk 0:00:04]} 38. bxa6 {[%clk 0:02:01]}  Rxa6 {[%clk 0:00:06]} 39. Kb4 {[%clk 0:02:01]}  h4 {[%clk 0:00:06]} 40. a4 {[%clk 0:01:59]}  hxg3 {[%clk 0:00:05]} 41. fxg3 {[%clk 0:02:01]}  f6 {[%clk 0:00:06]} 42. Rd8+ {[%clk 0:02:00]}  Kh7 {[%clk 0:00:03]} 43. Kb5 {[%clk 0:02:02]}  Nxe5 {[%clk 0:00:02]} 44. Kxa6 {[%clk 0:01:55]} 1-0


[Site "Internet"]

[Event "Chessable Masters - Torneo preliminare"]
[White "Abdusattorov, Nodirbek"]
[Black "Alekseenko, Kirill"]
[WhiteFideId "14204118"]
[BlackFideId "4135539"]
[WhiteElo "2714"]
[BlackElo "2632"]
[Result "1-0"]
[Round "4"]
[TimeControl "600+2"]
[Date "2023.03.13"]
[WhiteClock "0:02:36"]
[BlackClock "0:00:04"]

1. e4 {[%clk 0:10:01]}  e5 {[%clk 0:10:00]} 2. Nf3 {[%clk 0:10:02]}  Nc6 {[%clk 0:10:00]} 3. Bb5 {[%clk 0:10:03]}  a6 {[%clk 0:10:01]} 4. Ba4 {[%clk 0:10:04]}  Nf6 {[%clk 0:09:54]} 5. O-O {[%clk 0:10:05]}  Be7 {[%clk 0:09:54]} 6. d3 {[%clk 0:10:01]}  b5 {[%clk 0:09:55]} 7. Bb3 {[%clk 0:10:02]}  d6 {[%clk 0:09:56]} 8. a3 {[%clk 0:10:03]}  O-O {[%clk 0:09:52]} 9. Nc3 {[%clk 0:10:03]}  Nb8 {[%clk 0:09:44]} 10. Bd2 {[%clk 0:09:46]}  Nbd7 {[%clk 0:09:04]} 11. Nd5 {[%clk 0:09:38]}  Nxd5 {[%clk 0:08:59]} 12. Bxd5 {[%clk 0:09:40]}  Rb8 {[%clk 0:09:00]} 13. b4 {[%clk 0:09:37]}  Nb6 {[%clk 0:08:05]} 14. Bb3 {[%clk 0:09:36]}  Kh8 {[%clk 0:07:56]} 15. d4 {[%clk 0:09:23]}  exd4 {[%clk 0:07:06]} 16. Nxd4 {[%clk 0:09:24]}  Bb7 {[%clk 0:07:07]} 17. c3 {[%clk 0:08:23]}  c5 {[%clk 0:06:47]} 18. Nf5 {[%clk 0:08:21]}  Bxe4 {[%clk 0:06:33]} 19. Nxe7 {[%clk 0:07:32]}  Qxe7 {[%clk 0:06:34]} 20. Re1 {[%clk 0:07:34]}  Qb7 {[%clk 0:06:32]} 21. f3 {[%clk 0:07:20]}  Bg6 {[%clk 0:06:22]} 22. Bf4 {[%clk 0:07:16]}  Rbd8 {[%clk 0:06:17]} 23. Bxd6 {[%clk 0:07:01]}  c4 {[%clk 0:03:36]} 24. Bxf8 {[%clk 0:06:58]}  Rxd1 {[%clk 0:03:37]} 25. Bxd1 {[%clk 0:07:00]}  h6 {[%clk 0:03:29]} 26. Bc5 {[%clk 0:07:01]}  Nd5 {[%clk 0:03:29]} 27. Bd4 {[%clk 0:07:03]}  Qd7 {[%clk 0:03:03]} 28. Ra2 {[%clk 0:06:03]}  Bd3 {[%clk 0:02:28]} 29. g3 {[%clk 0:05:50]}  f6 {[%clk 0:02:24]} 30. Rd2 {[%clk 0:05:42]}  Qf5 {[%clk 0:02:19]} 31. f4 {[%clk 0:05:35]}  Qd7 {[%clk 0:01:29]} 32. Bf3 {[%clk 0:05:28]}  Ne7 {[%clk 0:01:27]} 33. Bc5 {[%clk 0:05:24]}  Nd5 {[%clk 0:01:22]} 34. Bd4 {[%clk 0:05:24]}  Ne7 {[%clk 0:01:23]} 35. Kf2 {[%clk 0:05:07]}  Nf5 {[%clk 0:01:02]} 36. Bc5 {[%clk 0:05:04]}  Qf7 {[%clk 0:00:58]} 37. g4 {[%clk 0:04:57]}  Nh4 {[%clk 0:00:56]} 38. Re7 {[%clk 0:04:52]}  Qg6 {[%clk 0:00:54]} 39. f5 {[%clk 0:04:33]}  Nxf5 {[%clk 0:00:37]} 40. gxf5 {[%clk 0:04:28]}  Qxf5 {[%clk 0:00:38]} 41. Re3 {[%clk 0:03:51]}  Qf4 {[%clk 0:00:29]} 42. Kg1 {[%clk 0:03:51]}  h5 {[%clk 0:00:25]} 43. Rf2 {[%clk 0:03:34]}  Qg5+ {[%clk 0:00:25]} 44. Rg2 {[%clk 0:03:35]}  Qf4 {[%clk 0:00:26]} 45. h3 {[%clk 0:03:29]}  Qf5 {[%clk 0:00:20]} 46. Rg3 {[%clk 0:03:19]}  Qf4 {[%clk 0:00:21]} 47. Bxh5 {[%clk 0:03:17]}  Qf1+ {[%clk 0:00:20]} 48. Kh2 {[%clk 0:03:18]}  Qf2+ {[%clk 0:00:19]} 49. Rg2 {[%clk 0:03:18]}  Qf4+ {[%clk 0:00:20]} 50. Reg3 {[%clk 0:03:02]}  Qe5 {[%clk 0:00:20]} 51. Bf3 {[%clk 0:02:53]}  Qxc3 {[%clk 0:00:13]} 52. Rxg7 {[%clk 0:02:54]}  Qe5+ {[%clk 0:00:11]} 53. R2g3 {[%clk 0:02:55]}  c3 {[%clk 0:00:06]} 54. Re7 {[%clk 0:02:53]}  Qf4 {[%clk 0:00:06]} 55. Be3 {[%clk 0:02:50]}  Qd6 {[%clk 0:00:07]} 56. Re8+ {[%clk 0:02:45]}  Kh7 {[%clk 0:00:08]} 57. Be4+ {[%clk 0:02:47]}  f5 {[%clk 0:00:08]} 58. Bc5 {[%clk 0:02:32]}  Qd7 {[%clk 0:00:05]} 59. Re7+ {[%clk 0:02:33]}  Qxe7 {[%clk 0:00:06]} 60. Bxe7 {[%clk 0:02:35]}  c2 {[%clk 0:00:02]} 61. Bxd3 {[%clk 0:02:33]}  c1=Q {[%clk 0:00:02]} 62. Bxf5+ {[%clk 0:02:34]}  Kh6 {[%clk 0:00:04]} 63. Bf8+ {[%clk 0:02:36]} 1-0


[Site "Internet"]

[Event "Chessable Masters - Torneo preliminare"]
[White "Michalik, Peter"]
[Black "Martinez Alcantara, Jose Eduardo"]
[WhiteFideId "14907526"]
[BlackFideId "3805662"]
[WhiteElo "2526"]
[BlackElo "2643"]
[Result "1/2-1/2"]
[Round "4"]
[TimeControl "600+2"]
[Date "2023.03.13"]
[WhiteClock "0:09:44"]
[BlackClock "0:09:41"]

1. e4 {[%clk 0:09:55]}  e5 {[%clk 0:10:00]} 2. Nf3 {[%clk 0:09:56]}  Nf6 {[%clk 0:10:02]} 3. Nxe5 {[%clk 0:09:54]}  d6 {[%clk 0:10:03]} 4. Nf3 {[%clk 0:09:53]}  Nxe4 {[%clk 0:10:04]} 5. d4 {[%clk 0:09:55]}  d5 {[%clk 0:10:05]} 6. Bd3 {[%clk 0:09:56]}  Be7 {[%clk 0:10:07]} 7. O-O {[%clk 0:09:56]}  Bf5 {[%clk 0:10:09]} 8. Re1 {[%clk 0:09:56]}  O-O {[%clk 0:10:10]} 9. Nbd2 {[%clk 0:09:57]}  Nd6 {[%clk 0:10:08]} 10. Nf1 {[%clk 0:09:56]}  Bg6 {[%clk 0:10:06]} 11. Bf4 {[%clk 0:09:44]}  Nd7 {[%clk 0:10:01]} 12. Ng3 {[%clk 0:09:44]}  c6 {[%clk 0:09:41]} 1/2-1/2


[Site "Internet"]